[Event "Gibraltar Challengers B 2019"]
[Site "Caleta"]
[Date "2019.01.30"]
[Round "5"]
[White "Orndahl, Mats"]
[Black "Skutta, Bernd"]
[Result "1-0"]
[ECO "B06"]
[WhiteElo "2160"]
[BlackElo "1988"]
[Annotator "RC"]
[PlyCount "91"]
[EventDate "2019.01.18"]
[EventType "swiss"]
[EventCountry "GGB"]
[SourceTitle "playchess.com"]
[Source "ChessBase"]
[SourceQuality "1"]
[TimeControl "6600+10"]

1. d4 {[%emt 0:00:00]} d6 {[%emt 0:00:31]} 2. Bf4 {[%emt 0:00:13]} g6 {[%emt 0:00:51]} 3. Nc3 {[%emt 0:00:18]} Bg7 {[%emt 0:00:37]} 4. e4 {[%emt 0:05:19]} Nd7 {[%emt 0:01:25]} 5. Nf3 {[%emt 0:03:04]} c5 {[%emt 0:07:48]} 6. d5 {[%emt 0:00:36]} Ngf6 {[%emt 0:00:19]} 7. Qd2 {[%emt 0:01:11]} h6 {[%emt 0:02:23]} 8. h3 {[%emt 0:02:42]} a6 {[%emt 0:02:18]} 9. a4 {[%emt 0:00:23]} Qa5 {[%emt 0:00:45]} 10. Ra2 {[%emt 0:16:33]} Qb4 {[%emt 0:08:09]} 11. Bd3 {[%emt 0:00:21]} c4 {[%emt 0:29:32]} 12. Be2 {[%emt 0:00:08]} Nc5 {[%emt 0:02:22]} 13. e5 {[%emt 0:12:19]} dxe5 {[%emt 0:04:33]} 14. Nxe5 {[%emt 0:00:56]} Nfd7 {[%emt 0:02:36]} 15. Nxc4 {[%emt 0:01:40]} Nb6 {[%emt 0:14:35]} 16. Nxb6 {[%emt 0:04:54]} Qxb6 {[%emt 0:00:12]} 17. O-O {[%emt 0:01:13]} e5 {[%emt 0:01:34]} 18. Be3 {[%emt 0:09:05]} Qd6 {[%emt 0:03:46]} 19. b4 {[%emt 0:01:45]} Nd7 {[%emt 0:00:28]} 20. Ne4 {[%emt 0:00:52]} Qe7 {[%emt 0:01:30]} 21. f3 {[%emt 0:15:24]} f5 {[%emt 0:02:42]} 22. Nc5 {[%emt 0:00:35]} f4 {[%emt 0:05:11]} 23. Bf2 {[%emt 0:00:54]} Nxc5 {[%emt 0:00:17]} 24. Bxc5 {[%emt 0:04:35]} Qg5 {[%emt 0:00:48]} 25. Kh1 {[%emt 0:00:56]} Qh5 {[%emt 0:06:09]} 26. Bd3 {[%emt 0:04:03]} Bf6 {[%emt 0:02:38]} 27. Bf2 {[%emt 0:13:06]} g5 {[%emt 0:00:51]} 28. Qe2 {[%emt 0:00:36]} Qf7 {[%emt 0:01:49]} 29. Qe4 {[%emt 0:00:34]} h5 {[%emt 0:01:52]} 30. Kg1 {[%emt 0:01:25]} g4 {[%emt 0:01:02]} 31. fxg4 {[%emt 0:00:23]} hxg4 {[%emt 0:00:16]} 32. hxg4 {[%emt 0:00:41]} Bxg4 {[%emt 0:00:33]} 33. Qg6 {[%emt 0:00:27]} Rg8 {[%emt 0:00:23]} 34. Qxf7+ {[%emt 0:00:21]} Kxf7 {[%emt 0:00:02]} 35. Be4 {[%emt 0:04:25]} Be2 {[%emt 0:01:24]} 36. Re1 {[%emt 0:00:35]} f3 {[%emt 0:00:02]} 37. g3 {[%emt 0:00:27]} Rg4 {[%emt 0:01:29]} 38. Bf5 {[%emt 0:01:10]} Rxb4 {[%emt 0:00:48]} 39. Be6+ {[%emt 0:00:52]} Kg6 {[%emt 0:00:28]} 40. d6 {[%emt 0:00:30]} e4 {[%emt 0:00:32]} 41. d7 {[%emt 0:00:24]} Bd4 {[%emt 0:00:32]} 42. c3 {[%emt 0:00:27]} Bxf2+ 43. Kxf2 {[%emt 0:00:02]} Rf8 {[%emt 0:00:53]} 44. cxb4 {[%emt 0:00:09]} e3+ {[%emt 0:00:07]} 45. Kxe3 {[%emt 0:00:04]} f2 {[%emt 0:00:04]} 46. Raxe2 {[%emt 0:00:17]} 1-0

[Event "Gibraltar Challengers B 2019"]
[Site "Caleta"]
[Date "2019.01.30"]
[Round "5"]
[White "Berrocal Ruiz, Valentin"]
[Black "Severijnen, Arjon"]
[Result "1-0"]
[ECO "B23"]
[WhiteElo "2127"]
[BlackElo "2120"]
[Annotator "RC"]
[PlyCount "57"]
[EventDate "2019.01.18"]
[EventType "swiss"]
[EventCountry "GGB"]
[SourceTitle "playchess.com"]
[Source "ChessBase"]
[SourceQuality "1"]
[TimeControl "6600+10"]

1. e4 {[%emt 0:00:00]} c5 {[%emt 0:00:02]} 2. Nc3 {[%emt 0:00:03]} a6 {[%emt 0:00:42]} 3. g4 {[%emt 0:00:20]} Nc6 {[%emt 0:00:49]} 4. Bg2 {[%emt 0:00:20]} g6 {[%emt 0:04:10]} 5. Nge2 {[%emt 0:02:28]} Bg7 {[%emt 0:00:30]} 6. d3 {[%emt 0:00:55]} d6 {[%emt 0:02:08]} 7. Ng3 {[%emt 0:00:26]} Rb8 {[%emt 0:14:10]} 8. O-O {[%emt 0:03:46]} Nf6 {[%emt 0:06:52]} 9. h3 {[%emt 0:08:14]} O-O {[%emt 0:01:18]} 10. f4 {[%emt 0:04:51]} Nd7 {[%emt 0:06:57]} 11. f5 {[%emt 0:10:42]} b5 {[%emt 0:02:24]} 12. g5 {[%emt 0:03:08]} b4 {[%emt 0:03:08]} 13. Nce2 {[%emt 0:15:04]} Nd4 {[%emt 0:03:34]} 14. Kh1 {[%emt 0:02:47]} Bb7 {[%emt 0:03:33]} 15. h4 {[%emt 0:07:01]} Nxe2 {[%emt 0:07:07]} 16. Qxe2 {[%emt 0:00:16]} Be5 {[%emt 0:00:25]} 17. Qg4 {[%emt 0:01:35]} a5 {[%emt 0:06:21]} 18. Rb1 {[%emt 0:02:27]} a4 {[%emt 0:01:02]} 19. h5 {[%emt 0:02:44]} Kg7 {[%emt 0:02:11]} 20. Bf4 {[%emt 0:01:35]} Bxf4 {[%emt 0:09:45]} 21. Rxf4 {[%emt 0:02:37]} Ne5 {[%emt 0:00:45]} 22. Qh4 {[%emt 0:00:26]} Bc8 {[%emt 0:02:37]} 23. hxg6 {[%emt 0:07:39]} fxg6 {[%emt 0:01:56]} 24. Qh6+ {[%emt 0:02:00]} Kg8 {[%emt 0:03:44]} 25. fxg6 {[%emt 0:01:58]} hxg6 {[%emt 0:01:59]} 26. Rh4 {[%emt 0:00:53]} Kf7 {[%emt 0:00:41]} 27. Rf1+ {[%emt 0:00:32]} Bf5 {[%emt 0:00:11]} 28. Nxf5 {[%emt 0:00:40]} Ke8 {[%emt 0:01:17]} 29. Qxf8+ {[%emt 0:00:49]} 1-0

[Event "Gibraltar Challengers B 2019"]
[Site "Caleta"]
[Date "2019.01.30"]
[Round "5"]
[White "Alarcon Olmos, Daniel"]
[Black "Ramasindraibe, Girard"]
[Result "0-1"]
[ECO "C77"]
[WhiteElo "2124"]
[BlackElo "2129"]
[Annotator "NA RC"]
[PlyCount "58"]
[EventDate "2019.01.18"]
[EventType "swiss"]
[EventCountry "GGB"]
[SourceTitle "playchess.com"]
[Source "ChessBase"]
[SourceQuality "1"]
[TimeControl "6600+10"]

{[%evp 11,57,30,32767,32767,32767,32767,32767,25,24,32767,32767,0,7,32767,5,0,7,32767,32767,32767,32767,20,41,23,34,0,0,0,0,32767,-29,-15,32767,32767,-20,-46,32767,-299,32767,-785,32767,-826,-922,32767,-914,32767,32767,-1700]} 1. e4 {[%emt 0:00:00]} e5 {[%emt 0:00:12]} 2. Nf3 {[%emt 0:00:38]} Nc6 {[%emt 0:00:07]} 3. Bb5 {[%emt 0:02:01]} a6 {[%emt 0:00:09]} 4. Ba4 {[%emt 0:00:11]} Nf6 {[%emt 0:00:02]} 5. d3 {[%emt 0:00:52]} d6 {[%emt 0:03:24]} 6. c3 {[%emt 0:00:53]} g6 {[%emt 0:00:07]} 7. O-O {[%emt 0:03:19]} Bg7 {[%emt 0:00:01]} 8. Re1 {[%emt 0:00:50]} O-O {[%emt 0:00:27]} 9. h3 {[%emt 0:05:20] LiveBook: 60 Games} b5 {[%emt 0:08:12] C77: Ruy Lopez: 3...a6 4 Ba4 Nf6, unusual lines} (9... Re8 10. Be3 d5 11. Nbd2 h6 12. exd5 Nxd5 13. Bxc6 bxc6 14. Qa4 Bf5 15. Ne4 Rb8 16. Rab1 Nb6 17. Qc2 {½-½ (40) Zhao,J (2599)-Wang,H (2713) Hanoi 2018}) 10. Bb3 {[%emt 0:01:15]} Na5 {[%emt 0:02:07]} 11. Bc2 {[%emt 0:00:16]} c5 {[%emt 0:00:06]} 12. d4 {[%emt 0:07:09]} Qc7 {[%emt 0:00:15]} (12... cxd4 $17 13. cxd4 exd4) 13. d5 {[%emt 0:01:30]} Nh5 $146 {[%emt 0:01:41]} ({Predecessor:} 13... Nc4 14. b3 Nb6 {1-0 (53) Vratonjic,S (2453)-Nestorovic,N (2424) Zlatibor 2007}) 14. Nbd2 {[%emt 0:09:11]} Bh6 {[%emt 0:06:11]} 15. b4 {[%emt 0:00:58]} cxb4 {[%emt 0:03:27]} 16. cxb4 {[%emt 0:00:29]} Nc4 {[%emt 0:02:42]} 17. Nxc4 {[%emt 0:05:17]} Bxc1 {[%emt 0:00:03]} 18. Rxc1 {[%emt 0:13:12]} Qxc4 {[%emt 0:00:52]} 19. a3 {[%emt 0:00:36]} Qc7 $1 {[%emt 0:00:20]} 20. Kh2 {[%emt 0:17:20]} Bd7 {[%emt 0:03:25]} 21. Qd2 {[%emt 0:03:19]} Qb6 {[%emt 0:00:10]} 22. g3 {[%emt 0:06:20]} a5 {[%emt 0:01:19]} 23. Kg2 {[%emt 0:01:02]} axb4 {[%emt 0:02:27]} 24. Qxb4 $2 {[%emt 0:01:37]} (24. axb4 $15 Ra2 25. Ra1) 24... Bxh3+ {[%emt 0:00:17]} 25. Kxh3 $2 {[%emt 0:03:26]} (25. Kg1) 25... Qxf2 {[%emt 0:00:54]} 26. Rg1 {[%emt 0:00:49]} Qxf3 {[%emt 0:00:08]} 27. Bd1 {[%emt 0:00:43]} Nf4+ {[%emt 0:04:31]} 28. Kh4 {[%emt 0:00:41]} Qf2 {[%emt 0:06:30]} 29. Rh1 $19 {[%emt 0:05:24]} Nd3 {[%emt 0:10:03]} 0-1

[Event "Gibraltar Challengers B 2019"]
[Site "Caleta"]
[Date "2019.01.30"]
[Round "5"]
[White "Verneuil, Pascal"]
[Black "Garcia Rodriguez, Inaki"]
[Result "1-0"]
[ECO "C42"]
[WhiteElo "2114"]
[BlackElo "1931"]
[Annotator "NA RC"]
[PlyCount "91"]
[EventDate "2019.01.18"]
[EventType "swiss"]
[EventCountry "GGB"]
[SourceTitle "playchess.com"]
[Source "ChessBase"]
[SourceQuality "1"]
[TimeControl "6600+10"]

1. e4 {[%emt 0:05:21]} e5 {[%emt 0:00:00]} 2. Nf3 {[%emt 0:00:04]} Nf6 {[%emt 0:00:08]} 3. Nxe5 {[%emt 0:00:04]} Nc6 {[%emt 0:00:09]} 4. Nxc6 {[%emt 0:01:22]} dxc6 {[%emt 0:00:02]} 5. Nc3 {[%emt 0:00:37]} Bc5 {[%emt 0:00:06] C42: Petroff Defence: 3 Nxe5 and unusual White 3rd moves} 6. Be2 {[%emt 0:00:10]} h5 {[%emt 0:00:06]} 7. d4 $146 {[%emt 0:01:16]} ({Predecessor:} 7. d3 Ng4 8. Bxg4 hxg4 9. Qe2 Be6 10. Be3 Bb4 11. Qd2 Qd7 12. a3 Be7 13. d4 {1-0 (41) Hinks Edwards,T (2393)-Pletanek,J (2242) Czechia 2009}) 7... Bxd4 {[%emt 0:03:33]} 8. Qd3 {[%emt 0:00:30]} Be6 {[%emt 0:22:47]} 9. Be3 {[%emt 0:01:08]} Bxe3 {[%emt 0:01:16]} 10. Qxe3 {[%emt 0:00:22]} Nd7 {[%emt 0:04:06]} 11. O-O-O {[%emt 0:00:19]} Qe7 {[%emt 0:00:33]} 12. Kb1 {[%emt 0:00:50]} Qc5 {[%emt 0:03:37]} 13. Rd4 {[%emt 0:01:16]} Qa5 {[%emt 0:11:09]} (13... Qe7 $14) 14. f4 {[%emt 0:01:11]} f6 {[%emt 0:00:22]} 15. Rhd1 {[%emt 0:03:09]} c5 {[%emt 0:05:56]} 16. Ra4 {[%emt 0:01:28]} Qb6 {[%emt 0:00:27]} 17. Qg3 {[%emt 0:00:16]} O-O-O $1 {[%emt 0:07:47]} 18. f5 {[%emt 0:00:21]} Bf7 {[%emt 0:00:36]} 19. Qxg7 {[%emt 0:01:23]} Ne5 {[%emt 0:00:22]} 20. Rxd8+ {[%emt 0:06:05]} Rxd8 {[%emt 0:00:57]} 21. Qh6 {[%emt 0:00:19]} (21. Nd5 $1 $11 Qd6 22. b3 (22. Qxf6 Qxf6 23. Nxf6 Rd2 $17) (22. Rxa7 Kb8 $15)) 21... c4 {[%emt 0:12:50]} 22. Qc1 {[%emt 0:01:48]} Qc5 {[%emt 0:01:33]} 23. Ra3 {[%emt 0:13:16]} b5 {[%emt 0:00:49]} 24. Nd5 {[%emt 0:00:59]} Bxd5 {[%emt 0:01:45]} 25. exd5 {[%emt 0:00:04]} b4 {[%emt 0:00:33]} 26. Ra6 {[%emt 0:01:44]} Qf2 {[%emt 0:04:26]} ({Better is} 26... Qxd5 $17 27. Bxh5 Qxg2 28. Rxf6 c3 29. bxc3 bxc3) 27. Bxh5 {[%emt 0:03:40]} Qxf5 {[%emt 0:01:01]} 28. Qd1 {[%emt 0:04:25]} Rd6 {[%emt 0:09:25]} 29. Rxd6 {[%emt 0:02:40]} cxd6 {[%emt 0:00:24]} 30. h3 {[%emt 0:01:32]} Qf2 {[%emt 0:02:41]} 31. Bf3 {[%emt 0:02:39]} Kc7 {[%emt 0:00:28]} 32. a3 {[%emt 0:02:29]} bxa3 {[%emt 0:05:58]} 33. bxa3 {[%emt 0:00:12]} Qc5 {[%emt 0:00:59]} 34. Ka2 {[%emt 0:00:14]} c3 {[%emt 0:01:07]} 35. Be2 {[%emt 0:10:20]} Qf2 {[%emt 0:02:30]} (35... Nc4 $11 36. Bxc4 Qxc4+ 37. Ka1 Qc5) 36. g4 {[%emt 0:05:31]} Qb6 {[%emt 0:00:47]} 37. Qb1 {[%emt 0:00:23]} Qe3 {[%emt 0:00:44]} (37... Qxb1+ $16 {is a better defense.} 38. Kxb1 Kb6) 38. Ba6 {[%emt 0:00:19]} Nd7 $2 {[%emt 0:01:57]} (38... Qb6) 39. Qb7+ {[%emt 0:06:28]} Kd8 {[%emt 0:00:03]} 40. Qc8+ {[%emt 0:00:07]} Ke7 {[%emt 0:00:05]} 41. Bb5 {[%emt 0:00:09]} Qd2 {[%emt 0:01:41]} 42. Qxd7+ {[%emt 0:00:24] Double Attack} Kf8 {[%emt 0:00:01]} 43. Qxd6+ {[%emt 0:00:36]} Kg7 {[%emt 0:00:01]} 44. Qc7+ {[%emt 0:00:30]} Kg6 {[%emt 0:00:03]} 45. Bd3+ {[%emt 0:00:25]} Kg5 {[%emt 0:00:03]} 46. d6 {[%emt 0:00:39]} 1-0

[Event "Gibraltar Challengers B 2019"]
[Site "Caleta"]
[Date "2019.01.30"]
[Round "5"]
[White "Bottema, Martin"]
[Black "Maldonado Mena, German"]
[Result "0-1"]
[ECO "E73"]
[WhiteElo "2104"]
[BlackElo "1808"]
[Annotator "NA RC"]
[PlyCount "64"]
[EventDate "2019.01.18"]
[EventType "swiss"]
[EventCountry "GGB"]
[SourceTitle "playchess.com"]
[Source "ChessBase"]
[SourceQuality "1"]
[TimeControl "6600+10"]

1. d4 {[%emt 0:00:00]} Nf6 {[%emt 0:00:00]} 2. c4 {[%emt 0:00:06]} g6 {[%emt 0:00:00]} 3. Nc3 {[%emt 0:00:10]} Bg7 {[%emt 0:00:03]} 4. e4 {[%emt 0:00:08]} d6 {[%emt 0:00:04]} 5. Be2 {[%emt 0:00:07]} O-O {[%emt 0:00:10]} 6. Be3 {[%emt 0:00:09]} e5 {[%emt 0:02:12]} 7. d5 {[%emt 0:00:06]} Nbd7 {[%emt 0:00:25]} 8. g4 {[%emt 0:00:36]} Nc5 {[%emt 0:01:23] E73: King's Indian: Averbakh Variation without 6...c5} 9. f3 {[%emt 0:00:17]} a5 {[%emt 0:00:17]} 10. h4 {[%emt 0:01:03]} h5 {[%emt 0:00:17]} 11. g5 {[%emt 0:00:11]} Ne8 {[%emt 0:02:37]} (11... Nh7 12. Kd2 Bd7 13. Nh3 c6 14. Nf2 cxd5 15. exd5 f5 16. gxf6 Nxf6 17. Bxc5 dxc5 {0-1 (37) Vallejo Pons,F (2705)-Radjabov,T (2741) Palma de Mallorca 2017}) 12. Qd2 {[%emt 0:01:23]} Bd7 {[%emt 0:03:18]} 13. O-O-O {[%emt 0:04:12]} b6 {[%emt 0:00:49]} (13... Qb8 $14) 14. Kb1 $146 {[%emt 0:01:26]} ({Predecessor:} 14. Nh3 Qc8 15. Nf2 Qa6 16. Kb1 {0-1 (58) Kumar,N (2268)-Shen,C (2254) Irving 2018}) 14... Na4 {[%emt 0:03:45]} 15. Nxa4 {[%emt 0:00:29]} Bxa4 {[%emt 0:00:03]} 16. Rc1 {[%emt 0:00:15]} Bd7 {[%emt 0:00:56]} 17. Nh3 {[%emt 0:00:31]} c6 {[%emt 0:02:23]} 18. dxc6 {[%emt 0:04:16]} Bxc6 {[%emt 0:00:06]} 19. Nf2 {[%emt 0:14:38]} Rb8 {[%emt 0:03:28]} 20. Rc3 {[%emt 0:10:57]} Qe7 {[%emt 0:05:46]} 21. Nd1 {[%emt 0:07:00]} Nc7 {[%emt 0:06:23]} 22. Rb3 {[%emt 0:00:30]} Ne6 {[%emt 0:00:07]} 23. Rxb6 {[%emt 0:00:24]} Rxb6 {[%emt 0:00:08]} 24. Bxb6 {[%emt 0:00:07]} Qb7 {[%emt 0:00:05]} 25. Bxa5 {[%emt 0:02:24]} Bxe4+ $1 {[%emt 0:00:13] Double Attack} 26. Ka1 {[%emt 0:03:13]} (26. Bd3 $17 Bxf3 27. Re1) 26... Bxf3 {[%emt 0:00:11]} 27. Rf1 {[%emt 0:06:36]} Bxe2 {[%emt 0:00:57]} 28. Qxe2 {[%emt 0:00:04]} Nd4 {[%emt 0:00:19]} 29. Qf2 {[%emt 0:03:14]} Qa6 {[%emt 0:01:37] Double Attack} 30. Bc3 {[%emt 0:02:16]} Qxc4 {[%emt 0:00:55]} 31. Ne3 $19 {[%emt 0:00:23]} Qd3 {[%emt 0:00:27]} 32. Rd1 {[%emt 0:04:25]} Nb3+ {[%emt 0:00:13]} 0-1

[Event "Gibraltar Challengers B 2019"]
[Site "Caleta"]
[Date "2019.01.30"]
[Round "5"]
[White "Schouten, Freek"]
[Black "Bryn, Askild"]
[Result "1-0"]
[ECO "E08"]
[WhiteElo "2087"]
[BlackElo "2010"]
[Annotator "NA RC"]
[PlyCount "51"]
[EventDate "2019.01.18"]
[EventType "swiss"]
[EventCountry "GGB"]
[SourceTitle "playchess.com"]
[Source "ChessBase"]
[SourceQuality "1"]
[TimeControl "6600+10"]

{[%evp 11,50,32,40,32767,54,49,34,16,27,-1,37,32767,68,32767,32767,32767,32767,32767,32767,32767,81,32767,32767,32767,32767,32767,32767,32767,32767,188,32767,193,227,220,393,454,455,505,528,546,1193]} 1. d4 {[%emt 0:00:00]} d5 {[%emt 0:09:52]} 2. Nf3 {[%emt 0:00:11]} Nf6 {[%emt 0:00:20]} 3. c4 {[%emt 0:00:06]} e6 {[%emt 0:00:31]} 4. g3 {[%emt 0:00:11]} c6 {[%emt 0:00:50]} 5. Qc2 {[%emt 0:07:45]} Ne4 {[%emt 0:01:57]} 6. Bg2 {[%emt 0:01:54]} f5 {[%emt 0:01:55]} 7. Bf4 {[%emt 0:02:23]} Be7 {[%emt 0:02:04]} 8. Nbd2 {[%emt 0:04:45]} O-O {[%emt 0:02:40]} 9. O-O {[%emt 0:03:25]} Nd7 {[%emt 0:20:31]} 10. Ne5 {[%emt 0:16:34]} Bf6 {[%emt 0:02:59]} 11. Ndf3 {[%emt 0:21:41]} Ng5 {[%emt 0:10:46]} 12. Rac1 {[%emt 0:02:51]} Nxf3+ {[%emt 0:00:35]} 13. Nxf3 {[%emt 0:00:42]} g5 {[%emt 0:01:04]} 14. Bd6 {[%emt 0:04:47]} Be7 {[%emt 0:04:10]} 15. Bxe7 {[%emt 0:03:44]} Qxe7 {[%emt 0:00:17]} 16. e3 {[%emt 0:01:39]} g4 {[%emt 0:00:38]} 17. Ne1 {[%emt 0:01:12]} h5 {[%emt 0:02:47]} 18. Nd3 {[%emt 0:00:11]} Rf6 {[%emt 0:03:03]} 19. Nf4 {[%emt 0:03:12]} Rh6 {[%emt 0:00:52]} 20. cxd5 {[%emt 0:00:32]} cxd5 {[%emt 0:07:36]} 21. Qc7 {[%emt 0:03:52]} Kf7 {[%emt 0:04:25]} 22. Nd3 {[%emt 0:05:45]} Ke8 $2 {[%emt 0:02:02]} (22... Rh7 {was worth a try.} 23. Qf4 Nf8) 23. Qf4 {[%emt 0:04:37]} Rg6 {[%emt 0:03:06]} 24. Rc7 {[%emt 0:00:18]} Qg5 {[%emt 0:01:56]} 25. Rfc1 {[%emt 0:00:18]} Kd8 $18 {[%emt 0:11:56]} 26. Qd6 {[%emt 0:02:17]} 1-0

[Event "Gibraltar Challengers B 2019"]
[Site "Caleta"]
[Date "2019.01.30"]
[Round "5"]
[White "Broekman, Willem"]
[Black "Jordan Martinez, David"]
[Result "0-1"]
[ECO "A41"]
[WhiteElo "2071"]
[BlackElo "2125"]
[Annotator "RC"]
[PlyCount "116"]
[EventDate "2019.01.18"]
[EventType "swiss"]
[EventCountry "GGB"]
[SourceTitle "playchess.com"]
[Source "ChessBase"]
[SourceQuality "1"]
[TimeControl "6600+10"]

1. d4 {[%emt 0:00:00]} d6 {[%emt 0:00:00]} 2. c4 {[%emt 0:00:01]} e5 {[%emt 0:00:05]} 3. dxe5 {[%emt 0:00:14]} dxe5 {[%emt 0:00:04]} 4. Qxd8+ {[%emt 0:00:07]} Kxd8 {[%emt 0:00:10]} 5. Nf3 {[%emt 0:01:31]} f6 {[%emt 0:00:27]} 6. Nc3 {[%emt 0:00:20]} Be6 {[%emt 0:00:47]} 7. e4 {[%emt 0:00:34]} Nd7 {[%emt 0:01:25]} 8. Be2 {[%emt 0:01:23]} c6 {[%emt 0:01:34]} 9. Be3 {[%emt 0:01:24]} Bc5 {[%emt 0:07:02]} 10. Bxc5 {[%emt 0:00:59]} Nxc5 {[%emt 0:00:09]} 11. b4 {[%emt 0:02:21]} Nd7 {[%emt 0:00:25]} 12. O-O {[%emt 0:00:36]} Nh6 {[%emt 0:10:21]} 13. Rfd1 {[%emt 0:03:16]} Ke7 {[%emt 0:09:02]} 14. Rd2 {[%emt 0:03:45]} a5 {[%emt 0:03:19]} 15. Rb2 {[%emt 0:10:57]} axb4 {[%emt 0:01:00]} 16. Rxb4 {[%emt 0:00:02]} Nc5 {[%emt 0:00:44]} 17. Nd2 {[%emt 0:09:01]} Ra7 {[%emt 0:02:59]} 18. Rab1 {[%emt 0:01:11]} Rd8 {[%emt 0:02:44]} 19. Nb3 {[%emt 0:04:43]} Nxb3 {[%emt 0:01:18]} 20. axb3 {[%emt 0:02:43]} Rd2 {[%emt 0:04:46]} 21. Kf1 {[%emt 0:00:45]} Nf7 {[%emt 0:02:08]} 22. Ke1 {[%emt 0:00:57]} Rd4 {[%emt 0:01:35]} 23. Bf3 {[%emt 0:06:41]} Ng5 {[%emt 0:14:45]} 24. Rd1 {[%emt 0:04:52]} Kd6 {[%emt 0:09:13]} 25. Rxd4+ {[%emt 0:16:46]} exd4 {[%emt 0:00:02]} 26. Na4 {[%emt 0:00:18]} Bd7 {[%emt 0:07:10]} 27. c5+ {[%emt 0:01:59]} Ke5 {[%emt 0:01:59]} 28. Nb2 {[%emt 0:03:12]} Nxf3+ {[%emt 0:17:14]} 29. gxf3 {[%emt 0:00:44]} Kf4 {[%emt 0:00:19]} 30. Rxd4 {[%emt 0:01:00]} Be6 {[%emt 0:00:08]} 31. Ke2 {[%emt 0:02:32]} Bxb3 {[%emt 0:02:40]} 32. Nd3+ {[%emt 0:00:28]} Kg5 {[%emt 0:00:01]} 33. Rd7 {[%emt 0:03:43]} Kh6 {[%emt 0:01:02]} 34. f4 {[%emt 0:02:59]} Bc4 {[%emt 0:00:31]} 35. e5 {[%emt 0:01:58]} Kg6 {[%emt 0:01:04]} 36. Rd4 {[%emt 0:00:49]} Bd5 {[%emt 0:00:53]} 37. Rb4 {[%emt 0:05:34]} Kf5 {[%emt 0:00:25]} 38. Ke3 {[%emt 0:00:09]} h5 {[%emt 0:00:25]} 39. f3 {[%emt 0:01:33]} h4 {[%emt 0:00:54]} 40. h3 {[%emt 0:01:19]} Be6 {[%emt 0:01:15]} 41. Rd4 {[%emt 0:05:02]} Ra3 {[%emt 0:00:42]} 42. Rb4 {[%emt 0:01:13]} Kg6 {[%emt 0:01:21]} 43. Kd2 {[%emt 0:03:39]} Bxh3 {[%emt 0:00:12]} 44. Nf2 {[%emt 0:00:19]} Be6 {[%emt 0:00:25]} 45. exf6 {[%emt 0:00:16]} gxf6 {[%emt 0:01:49]} 46. Rxb7 {[%emt 0:02:28]} Rxf3 {[%emt 0:00:13]} 47. Ke2 {[%emt 0:00:41]} Rxf4 {[%emt 0:00:08]} 48. Rb1 {[%emt 0:00:04]} Rc4 {[%emt 0:00:10]} 49. Rh1 {[%emt 0:00:07]} Kh5 {[%emt 0:00:05]} 50. Nd3 {[%emt 0:00:08]} Bd5 {[%emt 0:00:37]} 51. Rg1 {[%emt 0:00:08]} Rg4 {[%emt 0:00:15]} 52. Rf1 {[%emt 0:00:03]} Kg5 {[%emt 0:00:10]} 53. Nf2 {[%emt 0:00:02]} Rc4 {[%emt 0:00:04]} 54. Rg1+ {[%emt 0:00:03]} Kf5 {[%emt 0:00:04]} 55. Nd3 {[%emt 0:00:06]} Rg4 {[%emt 0:00:12]} 56. Rf1+ {[%emt 0:00:03]} Kg5 {[%emt 0:00:12]} 57. Nf2 {[%emt 0:00:09]} Bc4+ {[%emt 0:00:05]} 58. Nd3 {[%emt 0:00:01]} Rg2+ {[%emt 0:00:19]} 0-1